bitfinex-derivatives/quotes_SOLF0:USTF0_20260302
["timestamp","ask_amount","ask_price","bid_price","bid_amount"]
[1772436959496,0.00060266,83.013,83.001,6.60449031]
[1772436959991,6.46745989,83.068,83.001,6.60449031]
[1772436960892,6.46745989,83.059,83.001,6.60449031]
[1772436961890,6.46745989,83.049,82.981,6.60449031]
[1772436962094,6.46745989,83.049,82.92,9.47285823]
[1772436962095,6.46745989,83.029,82.967,6.60449031]
[1772436962292,6.46745989,83.019,82.967,6.60449031]
[1772436962799,6.46745989,83.019,82.92,9.48077021]
[1772436962800,6.46745989,83.019,82.951,6.60449031]
[1772436963397,6.46745989,83.009,82.951,6.60449031]
[1772436963706,6.46745989,82.999,82.94,6.60449031]
[1772436963896,9.48077021,82.99,82.94,6.60449031]
[1772436964901,9.48077021,82.98,82.929,10.853]
[1772436965499,6.46745989,82.989,82.93,6.60449031]
[1772436965691,6.46745989,82.989,82.934,10.852]
[1772436966197,6.46745989,82.989,82.935,6.60449031]
[1772436967790,6.46745989,82.989,82.936,10.852]
[1772436968193,6.46745989,82.989,82.911,6.60449031]
[1772436968401,9.48077021,82.97,82.911,6.60449031]
[1772436969099,6.46745989,82.979,82.911,6.60449031]
[1772436969298,6.46745989,82.979,82.925,10.853]
[1772436970403,6.46745989,82.979,82.914,6.60449031]
[1772436971099,6.46745989,82.979,82.927,6.60449031]
[1772436971900,6.46745989,82.979,82.93,10.853]
[1772436972202,6.46745989,82.969,82.911,6.60449031]
[1772436972602,6.46745989,82.959,82.911,6.60449031]
[1772436973003,6.46745989,82.949,82.896,6.60449031]
[1772436974099,6.46745989,82.929,82.867,6.60449031]
[1772436975597,6.28575991,82.919,82.867,6.60449031]
[1772436975798,6.28575991,82.919,82.872,10.86]
[1772436976502,9.48077021,82.96,82.882,10.859]
[1772436976503,6.28575991,82.929,82.882,10.859]
[1772436978000,6.28575991,82.929,82.882,17.3943424]
[1772436978207,6.39326288,82.958,82.891,6.5353424]
[1772436978602,6.39326288,82.958,82.918,10.854]
[1772436982205,6.39326288,82.958,82.88,9.48077021]
[1772436982206,6.39326288,82.949,82.886,6.5353424]
[1772436982800,6.39326288,82.949,82.9,10.857]
[1772436986004,22.65018309,82.966,82.921,10.854]
[1772436986303,22.65018309,82.966,82.88,9.48077021]
[1772436986304,6.39326288,82.965,82.906,6.5353424]
[1772436986509,6.39326288,82.959,82.906,6.5353424]
[1772436986713,6.39326288,82.959,82.909,10.855]
[1772436987809,6.39326288,82.959,82.909,17.3903424]
[1772436989807,6.39326288,82.99,82.924,6.5353424]
[1772436990007,6.39326288,83.007,82.941,6.5353424]
[1772436990610,6.39326288,83.007,82.957,10.849]
[1772436992508,6.39326288,83.007,82.92,9.48077021]
[1772436992509,6.39326288,83.036,82.967,6.5353424]
[1772436992709,6.39326288,83.036,82.971,6.5353424]
[1772436993511,6.39326288,83.034,82.971,6.5353424]
[1772436994111,6.39326288,83.019,82.921,6.5353424]
[1772436994316,6.39326288,83.019,82.961,6.5353424]
[1772436995213,6.39326288,83.019,82.972,10.847]
[1772436995416,6.39326288,83.019,82.951,6.5353424]
[1772436995712,6.39326288,83.019,82.96,10.849]
[1772436996017,6.39326288,83.019,82.951,6.5353424]
[1772436996917,6.39326288,83.019,82.96,9.48077021]
[1772436997116,6.39326288,83.019,82.96,16.01611261]
[1772436997316,6.39326288,83.019,82.969,10.848]
[1772436999011,6.39326288,83.019,82.96,6.5353424]
[1772436999615,2.09619613,83.064,82.936,6.5353424]
[1772436999616,6.39326288,83.006,82.936,6.5353424]
[1772436999917,6.39326288,83.006,82.941,6.5353424]
[1772437001314,6.39326288,83.006,82.952,6.5353424]
[1772437002113,6.39326288,83.006,82.953,10.85]
[1772437006116,6.39326288,83.006,82.953,17.3853424]
[1772437006319,6.39326288,83.006,82.954,6.5353424]
[1772437007320,6.40969619,83.034,82.979,5.8317523]
[1772437007822,6.40969619,83.029,82.97,9.48077021]
[1772437008116,6.40969619,83.019,82.964,5.8317523]
[1772437008917,6.40969619,83.018,82.966,5.8317523]
[1772437010324,6.40969619,83.018,82.971,10.847]
[1772437014718,6.40969619,83.016,82.966,5.8317523]
[1772437015715,6.40969619,83.009,82.966,5.8317523]
[1772437015925,15.8904664,83.0,82.953,16.6817523]
[1772437016125,15.8904664,83.0,82.954,5.8317523]
[1772437016524,6.40969619,83.0,82.954,5.8317523]
[1772437017023,6.40969619,83.0,82.957,10.849]
[1772437018629,15.8904664,83.0,82.957,10.849]
[1772437018826,15.8904664,83.0,82.954,5.8317523]
[1772437019024,6.40969619,83.014,82.954,5.8317523]
[1772437020330,6.40969619,83.033,82.974,5.8317523]
[1772437021326,6.40969619,83.029,82.974,5.8317523]
[1772437021528,6.40969619,83.019,82.974,5.8317523]
[1772437022826,6.40969619,83.019,82.96,5.8317523]
[1772437023626,6.40969619,83.009,82.961,10.849]
[1772437024123,6.40969619,83.009,82.961,16.6807523]
[1772437024327,6.40969619,83.009,82.966,5.8317523]
[1772437024524,6.40969619,83.025,82.966,5.8317523]
[1772437024932,6.40969619,83.025,82.976,5.8317523]
[1772437025127,10.839,83.037,82.976,5.8317523]
[1772437025432,6.40969619,83.036,82.976,5.8317523]
[1772437025731,6.40969619,83.029,82.976,5.8317523]
[1772437026331,6.40969619,83.029,82.982,16.6777523]
[1772437027827,6.40969619,83.029,82.991,10.845]
[1772437028035,6.40969619,83.042,82.992,5.8317523]
[1772437029121,9.47894513,83.04,82.992,5.8317523]
[1772437029432,6.40969619,83.039,82.993,10.844]
[1772437029634,20.31594513,83.05,82.994,5.8317523]
[1772437030135,6.40969619,83.049,82.994,5.8317523]
[1772437030530,6.40969619,83.049,82.996,5.8317523]
[1772437031927,9.47894513,83.06,83.001,5.8317523]
[1772437033435,9.47894513,83.06,83.017,10.841]
[1772437033935,6.40969619,83.049,83.0,5.8317523]
[1772437037334,6.40969619,83.049,82.955,22.31914492]
[1772437037335,5.89109232,83.039,82.991,5.82730199]
[1772437037837,9.47894513,83.05,82.991,5.82730199]
[1772437038441,5.89109232,83.049,82.991,5.82730199]
[1772437039340,5.89109232,83.049,83.002,10.843]
[1772437040035,5.89109232,83.049,82.993,10.845]
[1772437040239,5.89109232,83.049,82.994,5.82730199]
[1772437041235,5.89109232,83.049,82.998,5.82730199]
[1772437041935,5.89109232,83.049,83.007,10.843]
[1772437042135,5.89109232,83.049,83.008,5.82730199]
[1772437042335,5.89109232,83.049,83.01,10.842]
[1772437042531,3.977982,83.04,83.011,5.82730199]
[1772437043741,3.977982,83.03,82.996,5.82730199]
[1772437044040,3.977982,83.03,82.944,36.2]
[1772437044041,3.977982,83.02,82.981,5.82730199]
[1772437044242,3.977982,83.03,82.994,5.82730199]
[1772437044736,3.977982,83.03,82.997,10.844]
[1772437045532,3.977982,83.03,82.994,5.82730199]
[1772437046141,3.977982,83.02,82.994,5.82730199]
[1772437046342,3.977982,83.01,82.979,5.82730199]
[1772437047738,3.977982,83.0,82.979,5.82730199]
[1772437047938,3.977982,83.01,82.979,5.82730199]
[1772437048241,3.977982,83.0,82.969,10.848]
[1772437050235,5.89109232,83.022,82.973,5.82730199]
[1772437050439,3.977982,83.02,82.973,5.82730199]
[1772437051143,3.977982,83.01,82.973,5.82730199]
[1772437052039,3.977982,83.03,82.984,5.82730199]
[1772437052640,5.89109232,83.041,82.986,10.845]
[1772437052641,3.977982,83.02,82.986,10.845]
[1772437053549,3.977982,83.04,83.001,5.82730199]
[1772437054246,3.977982,83.05,83.015,5.82730199]
[1772437054448,9.47018954,83.06,83.015,5.82730199]
[1772437055051,5.89109232,83.059,83.015,5.82730199]
[1772437055644,9.47018954,83.05,83.005,10.843]
[1772437055845,9.47018954,83.05,83.01,10.842]
[1772437056645,9.47018954,83.05,83.021,10.841]
[1772437056847,5.89109232,83.059,83.021,10.841]
[1772437059656,5.89109232,83.059,83.012,10.842]
[1772437060451,5.89109232,83.059,83.012,16.66930199]
[1772437060651,5.89109232,83.059,83.013,5.82730199]
[1772437061250,5.89109232,83.059,83.002,10.843]
[1772437061452,5.89109232,83.049,83.002,10.843]
[1772437061657,5.89109232,83.049,83.003,5.82730199]
[1772437062952,5.89109232,83.049,83.008,5.82730199]
[1772437070765,5.91090921,83.062,83.01,6.20552812]
[1772437072265,5.91090921,83.062,83.021,10.841]
[1772437072960,5.91090921,83.059,83.013,6.20552812]
[1772437073160,5.91090921,83.039,82.994,6.20552812]
[1772437073370,9.47018954,83.05,82.994,6.20552812]
[1772437073868,5.91090921,83.049,82.994,6.20552812]
[1772437075266,5.91090921,83.049,83.002,10.843]
[1772437075458,5.91090921,83.049,83.002,17.04852812]
[1772437076268,5.91090921,83.047,83.002,6.20552812]
[1772437076461,3.97948086,83.03,83.002,6.20552812]
[1772437078171,3.97948086,83.02,82.993,10.845]
[1772437081266,3.97948086,83.02,82.978,6.20552812]
[1772437081267,3.97948086,83.01,82.978,6.20552812]
[1772437083273,3.97948086,83.01,82.98,6.20552812]
[1772437083468,8.81158485,83.05,82.981,6.20552812]
[1772437083676,3.97948086,83.04,83.001,6.20552812]
[1772437083868,5.91090921,83.056,83.001,6.20552812]
[1772437084074,3.97948086,83.05,83.011,10.842]
[1772437084274,3.97948086,83.04,83.011,10.842]
[1772437084472,3.97948086,83.04,83.003,6.20552812]
[1772437084473,3.97818687,83.04,83.003,6.20552812]
[1772437085876,3.97818687,83.04,83.008,6.20552812]
[1772437088382,3.97818687,83.03,82.992,6.20552812]
[1772437089381,3.97818687,83.03,82.994,6.20552812]
[1772437089679,3.97818687,83.04,82.994,6.20552812]
[1772437089874,5.91090921,83.039,82.994,6.20552812]
[1772437090080,3.97818687,83.02,82.986,10.845]
[1772437090274,3.97818687,83.02,82.987,6.20552812]
[1772437090475,5.91090921,83.029,82.99,3.97818687]
[1772437090674,3.97818687,83.03,82.991,6.20552812]
[1772437094284,3.97818687,83.03,82.993,6.20552812]
[1772437095179,3.97818687,83.03,82.996,10.844]
[1772437095382,3.97818687,83.03,82.997,5.73130291]
[1772437098280,3.97818687,83.03,82.999,6.0553943]
[1772437098781,3.97818687,83.04,82.999,6.0553943]
[1772437098986,3.97818687,83.04,83.001,6.0553943]
[1772437099979,3.97818687,83.04,83.004,6.0553943]
[1772437101188,3.97818687,83.04,83.006,10.843]
[1772437101388,3.97818687,83.04,83.007,6.0553943]
[1772437101887,3.97818687,83.04,83.0,3.97818687]
[1772437101888,3.97818687,83.05,83.014,6.0553943]
[1772437103190,3.97818687,83.04,83.004,16.8983943]
[1772437103390,3.97818687,83.04,83.005,6.0553943]
[1772437104089,3.97818687,83.04,83.007,10.843]
[1772437105689,6.17725409,83.049,83.007,10.843]
[1772437105890,3.97818687,83.04,83.007,10.843]
[1772437106087,10.15544096,83.04,82.996,10.844]
[1772437106287,10.838,83.046,82.996,10.844]
[1772437106288,3.97818687,83.03,82.996,10.844]
[1772437107392,3.97818687,83.03,82.996,16.8993943]
[1772437107982,3.97818687,83.03,82.997,6.0553943]
[1772437108182,6.17725409,83.039,82.997,6.0553943]
[1772437108183,3.97818687,83.02,82.997,6.0553943]
[1772437108387,3.97818687,83.02,82.986,10.845]
[1772437108789,11.24735775,83.056,82.955,471.40408799]
[1772437108790,6.17725409,83.009,82.967,6.0553943]
[1772437109192,3.97818687,83.0,82.967,6.0553943]
[1772437109494,0.00018687,83.0,82.967,6.0553943]
[1772437110393,0.00018687,83.0,82.968,10.848]
[1772437111096,0.00018687,83.0,82.968,16.9033943]
[1772437111398,0.00018687,83.0,82.969,6.0553943]
[1772437111585,0.00018687,83.01,82.975,6.0553943]
[1772437111786,10.839,83.038,82.975,6.0553943]
[1772437111787,3.97818687,83.02,82.98,3.97818687]
[1772437111996,3.97818687,83.02,82.981,6.0553943]
[1772437112792,3.97818687,83.01,82.982,10.846]
[1772437113393,3.97818687,83.01,82.982,16.9013943]
[1772437115596,3.97818687,83.01,82.972,10.847]
[1772437115797,3.97818687,83.0,82.972,16.9023943]
[1772437116097,0.00018687,83.0,82.973,6.0553943]
[1772437117498,3.97818687,83.01,82.973,6.0553943]
[1772437119999,3.97818687,83.01,82.955,471.40408799]
[1772437120000,3.97818687,83.01,82.976,6.0553943]
[1772437125206,3.97818687,83.01,82.979,6.0553943]
[1772437125905,6.17725409,83.023,82.984,6.0553943]
[1772437126211,3.97818687,83.02,82.984,6.0553943]
[1772437126514,3.97818687,83.03,82.986,6.0553943]
[1772437128209,3.97818687,83.03,82.991,5.77286548]
[1772437132812,3.97818687,83.03,82.993,5.77286548]
[1772437135810,3.97818687,83.02,82.993,5.77286548]
[1772437136013,3.97818687,83.04,82.995,5.77286548]
[1772437136313,3.97818687,83.04,83.001,5.77286548]
[1772437136518,5.80706771,83.039,83.001,5.77286548]
[1772437136718,3.97818687,83.03,83.001,5.77286548]
[1772437137914,3.97818687,83.03,82.994,10.844]
[1772437138217,3.97818687,83.02,82.984,5.77286548]
[1772437139214,3.97818687,83.02,82.986,10.845]
[1772437139414,3.97818687,83.02,82.987,5.77286548]
[1772437139617,5.80706771,83.029,82.987,5.77286548]
[1772437140218,3.97818687,83.03,82.999,5.77286548]
[1772437140421,3.97818687,83.04,83.001,5.77286548]
[1772437141116,9.78525458,83.04,83.001,5.77286548]
[1772437141421,9.78525458,83.04,83.001,16.61586548]
[1772437141812,9.78525458,83.04,83.002,5.77286548]
[1772437143324,5.80706771,83.039,83.004,5.77286548]
[1772437144617,3.97818687,83.06,83.021,5.77286548]
[1772437144816,5.80706771,83.069,83.031,5.77286548]
[1772437145024,3.97818687,83.06,83.031,5.77286548]
[1772437145225,5.80706771,83.069,83.031,5.77286548]
[1772437146223,3.97818687,83.06,83.031,5.77286548]
[1772437146619,3.97644314,83.06,83.031,5.77286548]
[1772437148925,5.80706771,83.069,83.031,5.77286548]
[1772437150129,5.80706771,83.069,83.03,3.97644314]
[1772437150130,210.09382443,83.08,83.034,5.77286548]
[1772437150324,210.09382443,83.08,83.041,5.77286548]
[1772437151228,210.09382443,83.08,83.043,5.77286548]
[1772437152030,206.11738129,83.08,83.043,5.77286548]
[1772437152530,206.11738129,83.08,83.046,16.61086548]
[1772437152827,210.09382443,83.08,83.046,16.61086548]
[1772437153222,210.09382443,83.08,83.047,5.77286548]
[1772437153423,5.80706771,83.094,83.051,5.77286548]
[1772437153629,21.647,83.155,83.051,5.77286548]
[1772437153630,3.97644314,83.1,83.051,5.77286548]
[1772437153828,3.97644314,83.1,83.061,5.77286548]
[1772437154231,5.80706771,83.079,83.039,5.77286548]
[1772437154831,3.97644314,83.08,83.039,5.77286548]
[1772437155327,3.97644314,83.08,83.044,5.7822747]
[1772437156334,3.97644314,83.08,82.99,204.906]
[1772437156335,3.97644314,83.06,83.021,5.7822747]
[1772437156829,3.97644314,83.05,83.021,5.7822747]
[1772437159634,3.97644314,83.05,83.023,10.841]
[1772437160439,6.06076306,83.059,83.023,10.841]
[1772437160633,6.06076306,83.059,83.023,16.80899057]
[1772437161236,3.97644314,83.05,83.023,5.96799057]
[1772437162737,3.97644314,83.04,83.011,5.96799057]
[1772437163326,3.97644314,83.04,83.0,3.97644314]
[1772437163327,5.97091245,83.049,83.013,5.96799057]
[1772437163528,3.97644314,83.05,83.013,5.96799057]
[1772437164134,5.97091245,83.089,83.041,5.96799057]
[1772437164431,3.97644314,83.07,83.041,5.96799057]
[1772437165637,3.97644314,83.06,83.029,16.80799057]
[1772437166738,3.97644314,83.06,83.029,5.96799057]
[1772437167435,3.97644314,83.06,83.018,5.96799057]
[1772437167637,5.97091245,83.069,83.025,5.96799057]
[1772437167836,3.97644314,83.06,83.025,5.96799057]
[1772437170739,5.97091245,83.069,83.025,5.96799057]
[1772437170934,5.97091245,83.069,83.028,5.96799057]
[1772437171135,3.97644314,83.07,83.031,5.96799057]
[1772437172242,3.97644314,83.07,83.031,16.80799057]
[1772437172943,3.97644314,83.07,83.034,5.96799057]
[1772437173144,5.97091245,83.079,83.034,5.96799057]
[1772437173546,3.97644314,83.07,83.034,5.96799057]
[1772437174143,3.97644314,83.07,83.036,10.839]
[1772437174543,3.97644314,83.07,83.036,16.80699057]
[1772437175044,3.97644314,83.07,83.037,5.96799057]
[1772437175645,9.94735559,83.07,83.036,10.839]
[1772437175842,3.97644314,83.08,83.04,5.96799057]
[1772437176045,3.97644314,83.09,83.041,5.96799057]
[1772437176347,3.97644314,83.09,83.051,5.96799057]
[1772437176846,3.97644314,83.09,83.05,3.97644314]
[1772437176847,5.97091245,83.096,83.053,5.96799057]
[1772437177039,3.97644314,83.1,83.053,5.96799057]
[1772437177643,5.97091245,83.079,83.041,5.96799057]
[1772437177946,3.97644314,83.07,83.041,5.96799057]
[1772437178347,5.97091245,83.079,83.041,5.96799057]
[1772437178748,3.97644314,83.07,83.034,10.839]
[1772437179639,3.97644314,83.07,83.034,16.80699057]
[1772437179946,3.97644314,83.07,83.038,10.839]
[1772437180148,5.97091245,83.079,83.039,5.96799057]
[1772437180543,3.97644314,83.07,83.039,5.96799057]
[1772437180750,3.97644314,83.07,83.031,10.839]
[1772437180950,3.97644314,83.07,83.032,5.96799057]
[1772437181145,5.97091245,83.069,83.031,10.839]
[1772437181354,3.97644314,83.06,83.031,10.839]
[1772437181948,5.97091245,83.069,83.034,10.839]
[1772437182751,5.97091245,83.084,83.037,5.96799057]
[1772437183051,3.97644314,83.07,83.037,5.96799057]
[1772437183251,3.97644314,83.06,83.037,5.96799057]
[1772437183550,3.97644314,83.07,83.037,5.96799057]
[1772437184553,0.00044314,83.07,83.039,5.96799057]
[1772437184947,3.97644314,83.07,83.039,5.96799057]
[1772437185253,5.97091245,83.079,83.039,5.96799057]
[1772437186050,5.97091245,83.092,83.052,10.837]
[1772437186249,3.97644314,83.08,83.052,10.837]
[1772437187054,3.97644314,83.08,83.042,16.81486812]
[1772437188053,3.97644314,83.08,83.045,10.838]
[1772437192057,3.97644314,83.08,83.045,16.81486812]
[1772437192760,3.97644314,83.08,82.995,30.0269464]
[1772437192761,3.97644314,83.12,83.071,5.97686812]
[1772437192956,3.97644314,83.13,83.081,5.97686812]
[1772437193157,5.91023149,83.119,83.081,5.97686812]
[1772437194262,3.97644314,83.11,83.081,5.97686812]
[1772437197455,5.68620436,83.141,83.09,3.97644314]
[1772437197655,3.97644314,83.13,83.091,5.97686812]
[1772437198256,3.97644314,83.13,83.061,22.52113301]
[1772437198257,3.97644314,83.14,83.101,5.97686812]
[1772437198654,5.58184882,83.159,83.113,5.97686812]
[1772437198858,5.58184882,83.159,83.079,14.96475707]
[1772437198859,3.97644314,83.13,83.1,11.25404496]
[1772437199053,3.97644314,83.13,83.096,11.25404496]
[1772437199259,3.97644314,83.13,83.093,17.23091308]
[1772437199762,3.97644314,83.13,83.094,5.97686812]
[1772437200163,3.97644314,83.13,83.095,17.23091308]
[1772437200363,3.97644314,83.13,83.098,11.25404496]
[1772437200570,5.57633108,83.139,83.099,5.97686812]
[1772437200774,5.57633108,83.139,83.099,17.23091308]
[1772437201076,5.57633108,83.139,83.099,5.97686812]
[1772437201573,3.97644314,83.13,83.099,5.97686812]
[1772437203169,3.97644314,83.13,83.091,5.97686812]
[1772437203366,3.97644314,83.11,83.076,5.97686812]
[1772437203568,3.97644314,83.1,83.064,11.25404496]
[1772437203768,3.97644314,83.09,83.055,11.25404496]
[1772437203968,3.97644314,83.08,83.048,11.25404496]
[1772437204173,5.67422283,83.099,83.054,5.97686812]
[1772437204366,3.97644314,83.09,83.054,5.97686812]
[1772437204978,3.97644314,83.08,83.054,5.97686812]
[1772437205180,3.97644314,83.08,83.044,10.838]
[1772437205981,3.97644314,83.07,83.044,10.838]
[1772437206173,3.97644314,83.07,83.04,5.97686812]
[1772437206377,3.97644314,83.06,83.029,11.25404496]
[1772437206777,5.81558023,83.086,83.029,11.25404496]
[1772437206978,3.97644314,83.07,83.03,11.25404496]
[1772437207175,3.97644314,83.07,83.029,11.25404496]
[1772437208175,3.97644314,83.07,83.03,10.84]
[1772437208570,3.9760042,83.07,83.03,10.84]
[1772437209182,3.9760042,83.06,83.026,5.97686812]
[1772437209687,3.9760042,83.07,83.028,5.97686812]
[1772437211586,3.9760042,83.07,83.03,5.97686812]
[1772437211986,5.69866603,83.087,83.033,5.97686812]
[1772437212186,3.9760042,83.08,83.041,5.97686812]
[1772437212385,3.9760042,83.07,83.041,5.97686812]
[1772437212586,22.46684633,83.117,83.051,5.97686812]
[1772437212587,3.9760042,83.09,83.051,5.97686812]
[1772437212988,3.9760042,83.08,83.051,5.97686812]
[1772437213490,3.9760042,83.07,83.045,10.838]
[1772437214080,3.9760042,83.08,83.045,10.838]
[1772437214790,3.9760042,83.08,83.037,5.97686812]
[1772437214988,3.9760042,83.07,83.037,5.97686812]
[1772437215389,3.9760042,83.08,83.037,5.97686812]
[1772437215782,3.9760042,83.08,83.04,3.9760042]
[1772437215986,3.9760042,83.08,83.043,5.65861229]
[1772437220794,5.37861424,83.116,83.051,5.54882501]
[1772437220990,3.9760042,83.1,83.06,9.52482921]
[1772437221993,9.35461844,83.1,83.06,9.52482921]
[1772437223194,5.37861424,83.099,83.06,5.54882501]
[1772437223397,3.9760042,83.09,83.05,3.9760042]
[1772437223696,5.37861424,83.099,83.051,5.54882501]
[1772437224596,3.9760042,83.09,83.051,5.54882501]
[1772437226993,3.9760042,83.09,83.052,5.54882501]
[1772437227393,5.37861424,83.141,83.081,5.54882501]
[1772437227689,5.37861424,83.141,83.095,5.54882501]
[1772437227690,3.9760042,83.14,83.095,5.54882501]
[1772437228487,9.35461844,83.14,83.095,5.54882501]
[1772437229094,5.37861424,83.14,83.098,10.831]
[1772437229288,9.35461844,83.14,83.098,10.831]
[1772437230992,9.35461844,83.14,83.095,5.54882501]
[1772437230993,5.37861424,83.139,83.095,5.54882501]
[1772437232405,3.9760042,83.13,83.095,5.54882501]
[1772437232600,5.37861424,83.129,83.081,5.54882501]
[1772437233502,3.9760042,83.12,83.081,5.54882501]
[1772437234198,3.9760042,83.14,83.091,5.54882501]
[1772437234405,9.35461844,83.14,83.091,5.54882501]
[1772437234599,3.9760042,83.13,83.091,5.54882501]
[1772437235604,9.35461844,83.13,83.091,5.54882501]
[1772437235800,5.37861424,83.129,83.09,3.9760042]
[1772437237601,5.37861424,83.119,83.078,5.54882501]
[1772437242504,3.9760042,83.13,83.09,3.9760042]
[1772437242706,3.9760042,83.13,83.081,5.54882501]
[1772437243308,9.35461844,83.13,83.081,5.54882501]
[1772437244213,9.35461844,83.13,83.086,10.832]
[1772437244613,9.35461844,83.13,83.087,5.54882501]
[1772437244809,5.37861424,83.129,83.087,5.54882501]
[1772437245115,3.9760042,83.12,83.087,5.54882501]
[1772437250219,5.37861424,83.129,83.087,5.54882501]
[1772437251421,3.9760042,83.12,83.087,5.54882501]
[1772437258424,3.9760042,83.12,83.089,5.37541005]
[1772437260424,3.9760042,83.13,83.091,5.37541005]
[1772437260722,3.9760042,83.14,83.092,5.37541005]
[1772437261920,9.2194011,83.14,83.093,5.37541005]
[1772437262125,3.9760042,83.13,83.093,5.37541005]
[1772437262326,3.9760042,83.12,83.087,11.25404496]
[1772437262924,3.9760042,83.11,83.083,11.25404496]
[1772437263128,3.9760042,83.11,83.082,5.37541005]
[1772437263430,5.25211799,83.119,83.082,16.62945501]
[1772437264430,5.25211799,83.119,83.085,11.25404496]
[1772437264827,3.9760042,83.13,83.086,5.37541005]
[1772437265029,3.9760042,83.13,83.094,5.37541005]
[1772437265229,3.9760042,83.14,83.095,5.37541005]
[1772437265426,3.9760042,83.14,83.1,5.37541005]
[1772437265930,5.28821418,83.163,83.12,3.9760042]
[1772437266232,25.9048733,83.16,83.121,5.37541005]
[1772437266828,21.9288691,83.16,83.124,5.37541005]
[1772437267626,3.9760042,83.17,83.131,5.37541005]
[1772437267827,3.9760042,83.17,83.132,5.37541005]
[1772437268928,3.9760042,83.16,83.132,5.37541005]
[1772437269132,3.9760042,83.15,83.121,5.37541005]
[1772437269330,3.9760042,83.15,83.122,5.37541005]
[1772437270027,5.38252251,83.159,83.118,11.25404496]
[1772437270236,3.9760042,83.14,83.116,16.62945501]
[1772437270435,3.96835974,83.15,83.116,16.62945501]
[1772437270831,3.96835974,83.15,83.119,11.25404496]
[1772437271031,3.96835974,83.15,83.117,5.37541005]
[1772437271234,3.96835974,83.15,83.117,16.62945501]
[1772437272329,3.96835974,83.14,83.112,11.25404496]
[1772437272534,3.96835974,83.14,83.113,5.37541005]
[1772437272736,3.96835974,83.15,83.113,5.37541005]
[1772437274038,3.96835974,83.15,83.116,5.37541005]
[1772437275636,3.96835974,83.16,83.121,5.1960418]
[1772437276031,3.96835974,83.16,83.123,16.0240418]
[1772437276538,3.96835974,83.16,83.123,5.1960418]
[1772437277040,3.96835974,83.15,83.119,11.25404496]
[1772437277239,3.96835974,83.15,83.118,11.25404496]
[1772437277535,3.96835974,83.15,83.119,5.14208244]
[1772437283145,5.20580974,83.159,83.119,5.14208244]
[1772437284546,5.20580974,83.159,83.119,16.34897512]
[1772437285945,5.20580974,83.159,83.119,5.14208244]
[1772437286540,5.23183533,83.149,83.111,11.20689268]
[1772437287145,5.23183533,83.149,83.11,3.96835974]
[1772437287541,5.22358317,83.139,83.105,11.20689268]
[1772437287848,5.22358317,83.139,83.101,11.20689268]
[1772437289144,5.22358317,83.139,83.102,11.20689268]
[1772437289944,5.22358317,83.139,83.103,5.14208244]
[1772437292250,5.22358317,83.139,83.103,16.34897512]
[1772437293145,5.22358317,83.139,83.104,5.14208244]
[1772437294052,5.22358317,83.139,83.092,14.96475707]
[1772437294053,3.96835974,83.13,83.102,11.20689268]
[1772437294253,5.19837272,83.129,83.092,11.20689268]
[1772437295246,5.19837272,83.129,83.093,11.20689268]
[1772437296248,5.19837272,83.129,83.092,11.20689268]
[1772437296851,5.19837272,83.129,83.093,11.20689268]
[1772437299149,5.19837272,83.129,83.094,11.20689268]
[1772437302754,5.19837272,83.129,83.089,11.20689268]
[1772437303558,5.19837272,83.129,83.09,11.20689268]
[1772437303947,5.19837272,83.129,83.09,15.17525242]
[1772437304150,5.19837272,83.129,83.09,3.96835974]
[1772437305658,5.19837272,83.129,83.089,16.34897512]
[1772437306356,5.19837272,83.129,83.09,3.96835974]
[1772437306960,5.19837272,83.129,83.089,5.14208244]
[1772437308956,5.19837272,83.129,83.09,3.96835974]
[1772437309257,4.97973879,83.119,83.084,11.20689268]
[1772437309461,4.97973879,83.119,83.08,3.96835974]
[1772437309758,4.97973879,83.119,83.079,11.20689268]
[1772437309963,4.97973879,83.119,83.068,14.96475707]
[1772437309964,4.97973879,83.089,83.043,5.2137829]
[1772437310256,3.96835974,83.06,83.021,5.2137829]
[1772437310762,4.97973879,83.069,83.021,5.2137829]
[1772437312459,4.97973879,83.069,83.03,3.96835974]
[1772437313158,4.97973879,83.069,83.021,5.2137829]
[1772437313360,4.97973879,83.068,83.021,5.2137829]
[1772437313564,3.96835974,83.06,83.021,5.2137829]
[1772437317569,8.94809853,83.06,83.021,5.2137829]
[1772437318472,4.97973879,83.059,83.021,5.2137829]
[1772437325874,3.96835974,83.05,83.021,5.2137829]
[1772437327979,4.97973879,83.049,83.011,5.2137829]
[1772437328769,3.96835974,83.03,83.001,5.2137829]
[1772437330378,4.97973879,83.059,83.014,5.2137829]
[1772437330574,4.97973879,83.059,83.02,9.18214264]
[1772437331281,4.97973879,83.059,83.021,5.2137829]
[1772437333072,4.97973879,83.098,83.05,3.97753021]
[1772437333272,4.97973879,83.098,83.06,3.97753021]
[1772437333478,4.97973879,83.098,83.07,3.97753021]